fUSD/lending_fUSD_20260203
["ID","MTS","AMOUNT","RATE_DAILY","PERIOD"]
[404418909,1770125438034,-500.0,9.133e-05,2]
[404418911,1770125438043,-562.28195765,9.133e-05,2]
[404418913,1770125438052,-500.0,9.133e-05,2]
[404418914,1770125438062,-166.51015303,9.133e-05,2]
[404418916,1770125438071,-500.0,9.133e-05,2]
[404418918,1770125438080,-500.0,9.133e-05,2]
[404418920,1770125438090,-500.55069623,9.133e-05,2]
[404418922,1770125438099,-500.0,9.133e-05,2]
[404418924,1770125438108,-500.0,9.133e-05,2]
[404418926,1770125438118,-500.0,9.133e-05,2]
[404418928,1770125438127,-315.0,9.156e-05,2]
[404418930,1770125438137,-634.04,9.225e-05,2]
[404418932,1770125438147,-193.0,9.254e-05,2]
[404418934,1770125438156,-300.0,9.254e-05,2]
[404418936,1770125438166,-250.0,9.254e-05,2]
[404418938,1770125438176,-300.0,9.265e-05,2]
[404418940,1770125438186,-250.0,9.265e-05,2]
[404418942,1770125438195,-300.0,9.265e-05,2]
[404418944,1770125438206,-300.0,9.265e-05,2]
[404418946,1770125438217,-1029.86,9.305e-05,2]
[404418948,1770125438227,-420.0,9.458e-05,2]
[404418950,1770125438237,-255.0,9.458e-05,2]
[404418952,1770125438246,-1680.0,9.458e-05,2]
[404418954,1770125438256,-420.0,9.458e-05,2]
[404418956,1770125438266,-1029.86,9.579e-05,2]
[404418958,1770125438276,-634.04,9.711e-05,2]
[404418959,1770125438285,-205.0,9.8e-05,2]
[404418960,1770125438295,-1029.86,9.853e-05,2]
[404418961,1770125438304,-164.01557148,0.0001,2]
[404418962,1770125438313,-164.01557148,0.0001,2]
[404418963,1770125438323,-151.0,0.0001,2]
[404418964,1770125438333,-151.0,0.0001,2]
[404418965,1770125438342,-151.0,0.0001,2]
[404418966,1770125438352,-151.0,0.0001,2]
[404418967,1770125438361,-151.0,0.0001,2]
[404418969,1770125438370,-151.0,0.0001,2]
[404418971,1770125438379,-151.0,0.0001,2]
[404418973,1770125438388,-151.0,0.0001,2]
[404418975,1770125438398,-151.0,0.0001,2]
[404418977,1770125438407,-151.0,0.0001,2]
[404418979,1770125438417,-151.0,0.0001,2]
[404418981,1770125438426,-151.0,0.0001,2]
[404418983,1770125438435,-151.0,0.0001,2]
[404418985,1770125438444,-151.0,0.0001,2]
[404418987,1770125438454,-151.0,0.0001,2]
[404418989,1770125438464,-151.0,0.0001,2]
[404418991,1770125438475,-151.0,0.0001,2]
[404418993,1770125438484,-151.0,0.0001,2]
[404418996,1770125438494,-151.0,0.0001,2]
[404418998,1770125438504,-150.01392508,0.0001,2]
[404419000,1770125438513,-151.0,0.0001,2]
[404419002,1770125438523,-269.09178599,0.0001,2]
[404419004,1770125438532,-1934.44747512,0.0001,2]
[404419006,1770125438541,-2739.81280514,0.0001,2]
[404419007,1770125438551,-22830.03957083,0.0001,2]
[404419008,1770125438560,-169.96770097,0.0001,2]
[404419010,1770125438570,-260.23313591,0.000101,2]
[404419011,1770125438580,-1029.86,0.00010127,2]
[404419012,1770125438589,-634.04,0.00010196,2]
[404419013,1770125438599,-151.89,0.00010278,2]
[404419014,1770125438608,-1029.86,0.00010401,2]
[404419015,1770125438617,-587.0,0.00010404,2]
[404419016,1770125438626,-2351.0,0.00010404,2]
[404419017,1770125438636,-433.0,0.00010404,2]
[404419018,1770125438645,-587.0,0.00010404,2]
[404419019,1770125438654,-1029.86,0.00010675,2]
[404419020,1770125438663,-634.04,0.00010682,2]
[404419021,1770125438673,-268.69527082,0.000107,2]
[404419022,1770125438682,-1029.43598608,0.000108,2]
[404419023,1770125438692,-2147.65440156,0.000109,2]
[404419024,1770125438700,-2147.65440152,0.000109,2]
[404419025,1770125438711,-1029.86,0.00010949,2]
[404419026,1770125438720,-166.66,0.00010959,2]
[404419027,1770125438730,-1800.0,0.00011,2]
[404419028,1770125438739,-166.66,0.00011068,2]
[404419029,1770125438749,-5728.15563805,0.00011099,2]
[404419030,1770125438758,-5728.15563805,0.00011099,2]
[404419031,1770125438767,-5728.15563805,0.00011099,2]
[404419032,1770125438777,-5728.15563805,0.00011099,2]
[404419033,1770125438786,-5728.15563805,0.00011099,2]
[404419034,1770125438796,-5728.15563805,0.00011099,2]
[404419035,1770125438806,-5728.15563805,0.00011099,2]
[404419036,1770125438816,-51478.58099797,0.00011099,2]
[404419037,1770125438829,-51478.58099788,0.00011099,2]
[404419038,1770125438839,-51478.58099788,0.00011099,2]
[404419039,1770125438848,-51478.58099788,0.00011099,2]
[404419040,1770125438858,-51478.58099788,0.00011099,2]
[404419041,1770125438869,-51478.58099788,0.00011099,2]
[404419042,1770125438879,-250.0,0.00011129,2]
[404419043,1770125438889,-150.01392508,0.00011166,2]
[404419044,1770125438898,-634.04,0.00011167,2]
[404419045,1770125438908,-166.66,0.00011178,2]
[404419046,1770125438918,-2147.65440152,0.00011186,2]
[404419047,1770125438927,-1029.86,0.00011223,2]
[404419048,1770125438936,-18103.07,0.00011233,2]
[404419049,1770125438946,-166.66,0.00011288,2]
[404419050,1770125438955,-51478.58099788,0.00011331,2]
[404419051,1770125438965,-166.66,0.00011397,2]
[404419052,1770125438974,-162.0,0.000114,2]
[404419053,1770125438983,-823.0,0.00011444,2]
[404419054,1770125438993,-3292.0,0.00011444,2]
[404419055,1770125439003,-736.0,0.00011444,2]
[404419056,1770125439013,-1029.86,0.00011497,2]
[404419057,1770125439023,-166.66,0.00011507,2]
[404419058,1770125439032,-634.04,0.00011653,2]
[404419059,1770125439041,-1029.86,0.00011771,2]
[404419060,1770125439051,-51478.58099788,0.00011803,2]
[404419061,1770125439060,-1959.0,0.00012,3]
[404419062,1770125439070,-1029.86,0.00012045,2]
[404419063,1770125439079,-634.04,0.00012138,2]
[404419064,1770125439089,-51478.58099788,0.00012275,2]
[404419065,1770125439099,-162.0,0.000123,2]
[404419066,1770125439108,-1029.86,0.00012319,2]
[404419067,1770125439118,-166.0,0.000125,2]
[404419068,1770125439128,-2147.65440152,0.00012529,2]
[404419069,1770125439138,-1252.0,0.00012587,2]
[404419070,1770125439147,-1152.0,0.00012588,2]
[404419071,1770125439157,-4609.0,0.00012588,2]
[404419072,1770125439167,-1029.86,0.00012593,2]
[404419073,1770125439177,-634.04,0.00012624,2]
[404419074,1770125439190,-151.0,0.00012687,2]
[404419075,1770125439199,-193732.81044148,0.0001269,2]
[404419076,1770125439209,-51478.58099788,0.00012747,2]
[404419077,1770125439218,-1029.86,0.00012867,2]
[404419078,1770125439228,-162.0,0.000129,2]
[404419079,1770125439461,-2462.48389394,0.00012947,2]
[404419080,1770125439471,-6498.53395641,0.00012947,2]
[404419081,1770125439480,-11464.18419495,0.00012947,2]
[404419082,1770125439490,-17149.73392783,0.00012997,2]
[404419083,1770125439499,-5613.98559882,0.00013,2]
[404419084,1770125439509,-4434.56277461,0.00013,2]
[404419085,1770125439518,-5354.65944007,0.0001305,2]
[404419086,1770125439527,-634.04,0.00013109,2]
[404419087,1770125439536,-1029.86,0.00013141,2]
[404419088,1770125439545,-269.09178599,0.000132,2]
[404419089,1770125439554,-166.61,0.000134,2]
[404419090,1770125439563,-1029.86,0.00013415,2]
[404419091,1770125439573,-500.0,0.00013479,2]
[404419092,1770125439582,-183.76045452,0.000135,2]
[404419093,1770125439591,-165.0,0.000136,2]
[404419094,1770125439601,-151.0,0.00013668,2]
[404419095,1770125439610,-151.0,0.00013668,2]
[404419096,1770125439619,-151.0,0.00013668,2]
[404419097,1770125439628,-151.0,0.00013668,2]
[404419098,1770125439636,-1029.86,0.00013689,2]
[404419099,1770125439645,-151.0,0.00013696,2]
[404419100,1770125439654,-151.0,0.00013696,2]
[404419101,1770125439663,-500.0,0.00013698,2]
[404419102,1770125439672,-500.0,0.00013698,2]
[404419103,1770125439681,-509.06540724,0.00013698,2]
[404419104,1770125439690,-500.0,0.00013698,2]
[404419105,1770125439699,-500.0,0.00013698,2]
[404419106,1770125439708,-500.0,0.00013698,2]
[404419107,1770125439718,-500.0,0.00013698,2]
[404419108,1770125439727,-340.45778603,0.00013698,2]
[404419109,1770125439737,-295.88498896,0.00013698,2]
[404419110,1770125439746,-500.0,0.00013698,2]
[404419111,1770125439755,-500.0,0.00013698,2]
[404419112,1770125439764,-500.0,0.00013698,2]
[404419113,1770125439773,-438.97921379,0.00013698,2]
[404419114,1770125439782,-199.38200897,0.00013698,2]
[404419115,1770125439791,-452.02134495,0.00013698,2]
[404419116,1770125439800,-500.0,0.00013698,2]
[404419117,1770125439808,-500.0,0.00013698,2]
[404419118,1770125439818,-500.0,0.00013698,2]
[404419119,1770125439830,-500.0,0.00013698,2]
[404419120,1770125439839,-378.56522147,0.00013698,2]
[404419121,1770125439848,-500.0,0.00013698,2]
[404419122,1770125439856,-500.0,0.00013698,2]
[404419123,1770125439865,-500.0,0.00013698,2]
[404419124,1770125439878,-500.0,0.00013698,2]
[404419125,1770125439888,-500.0,0.00013698,2]
[404419126,1770125439898,-500.0,0.00013698,2]
[404419127,1770125439907,-500.0,0.00013698,2]
[404419128,1770125439919,-500.0,0.00013698,2]
[404419129,1770125439928,-500.0,0.00013698,2]
[404419130,1770125439939,-222.83714718,0.00013698,2]
[404419131,1770125439950,-552.61203619,0.00013698,2]
[404419132,1770125439961,-500.0,0.00013698,2]
[404419133,1770125439970,-500.0,0.00013698,2]
[404419134,1770125439980,-500.0,0.00013698,2]
[404419135,1770125439990,-500.0,0.00013698,2]
[404419136,1770125439999,-545.58231824,0.00013698,2]
[404419137,1770125440009,-500.0,0.00013698,2]
[404419138,1770125440019,-500.0,0.00013698,2]
[404419139,1770125440029,-500.0,0.00013698,2]
[404419140,1770125440038,-500.0,0.00013698,2]
[404419141,1770125440048,-500.0,0.00013698,2]
[404419142,1770125440057,-500.0,0.00013698,2]
[404419143,1770125440067,-500.0,0.00013698,2]
[404419144,1770125440077,-500.0,0.00013698,2]
[404419145,1770125440086,-371.76186134,0.00013698,2]
[404419146,1770125440096,-500.0,0.00013698,2]
[404419147,1770125440107,-500.0,0.00013698,2]
[404419148,1770125440117,-500.0,0.00013698,2]
[404419149,1770125440126,-500.0,0.00013698,2]
[404419150,1770125440136,-500.0,0.00013698,2]
[404419151,1770125440146,-500.0,0.00013698,2]
[404419152,1770125440155,-558.31479011,0.00013698,2]
[404419153,1770125440165,-7243.61,0.00013699,2]
[404419154,1770125440174,-500.0,0.000137,2]
[404419155,1770125440184,-500.0,0.000137,2]
[404419156,1770125440193,-260.20893212,0.000137,2]
[404419157,1770125440203,-500.0,0.000137,2]
[404419158,1770125440213,-500.0,0.000137,2]
[404419159,1770125440222,-500.0,0.000137,2]
[404419160,1770125440231,-1613.0,0.00013847,2]
[404419161,1770125440241,-6453.0,0.00013847,2]
[404419162,1770125440250,-1071.0,0.00013851,2]
[404419163,1770125440259,-2147.65440152,0.00013871,2]
[404419164,1770125440267,-1029.86,0.00013963,2]
[404419165,1770125440277,-44956.68910458,0.00014156,2]
[404419166,1770125440286,-1029.86,0.00014237,2]
[404419167,1770125440295,-1000.0,0.00014248,2]
[404419168,1770125440304,-1000.0,0.00014248,2]
[404419170,1770125440313,-500.0,0.00014248,2]
[404419172,1770125440323,-160.0,0.00014322,2]
[404419175,1770125440334,-10332.61714049,0.0001439,2]
[404419176,1770125440345,-165.0,0.000145,2]
[404419177,1770125440354,-1029.86,0.00014511,2]
[404419178,1770125440364,-150.01392508,0.00014665,2]
[404419179,1770125440373,-1029.86,0.00014785,2]
[404419180,1770125440383,-495.7739334,0.00014796,2]
[404419181,1770125440393,-369.98194845,0.00014796,2]
[404419182,1770125440402,-250.0,0.00015,2]
[404419183,1770125440414,-2051.98803165,0.00015,2]
[404419184,1770125440423,-2141.537179,0.00015,14]
[404419185,1770125440434,-7988.62760331,0.00015,2]
[404419186,1770125440444,-596815.59333351,0.00015,3]
[404419187,1770125440454,-500.0,0.00015014,2]
[404419188,1770125440463,-150.0,0.00015038,7]
[404419189,1770125440471,-658.611442,0.00015038,7]
[404419190,1770125440480,-1167.222885,0.00015038,7]
[404419191,1770125440490,-1675.834327,0.00015038,7]
[404419192,1770125440499,-2184.44577,0.00015038,7]
[404419193,1770125440508,-2693.057212,0.00015038,7]
[404419194,1770125440518,-3201.668655,0.00015038,7]
[404419195,1770125440527,-3710.280097,0.00015038,7]
[404419196,1770125440536,-4218.89154,0.00015038,7]
[404419197,1770125440545,-4727.502982,0.00015038,7]
[404419198,1770125440557,-23204.1942,0.00015047,2]
[404419199,1770125440566,-1029.90834379,0.00015059,2]
[404419200,1770125440575,-2147.65440152,0.00015214,2]
[404419201,1770125440586,-2258.0,0.00015232,2]
[404419202,1770125440595,-6684.0,0.00015232,2]
[404419203,1770125440605,-165.0,0.000156,2]
[404419204,1770125440614,-500.0,0.00015781,2]
[404419205,1770125440623,-150.01392508,0.00015832,2]
[404419206,1770125440632,-5000.0,0.0001596,2]
[404419207,1770125440641,-182.69419301,0.00015997,2]
[404419208,1770125440650,-176712.27649277,0.00016,4]
[404419209,1770125440936,-695.28,0.00016,4]
[404419210,1770125440964,-17785.83770818,0.00016,4]
[404419211,1770125441015,-12200.0,0.00016,4]
[404419212,1770125441217,-5728.15563805,0.00011099,2]
[404419213,1770125441226,-254685.51006589,0.00016,4]
[404419214,1770125441237,-50820.83029231,0.00016,4]
[404419215,1770125441248,-538.47539785,0.00016,4]
[404419216,1770125441259,-10067.64992968,0.00016,4]
[404419217,1770125441269,-328.36626858,0.00016,4]
[404419218,1770125441287,-1445219.29098801,0.00016,4]
[404419219,1770125441297,-256.701042,0.00016,2]
[404419220,1770125441306,-160.0,0.00016,3]
[404419221,1770125441315,-1835.653297,0.00016,2]
[404419222,1770125441326,-1835.653297,0.00016,2]
[404419223,1770125441335,-1835.653297,0.00016,2]
[404419224,1770125441344,-1835.653297,0.00016,2]
[404419225,1770125441353,-9999.99,0.00016116,2]
[404419226,1770125441363,-17060.4951123,0.000162,5]
[404419227,1770125441372,-1000.0,0.00016228,7]
[404419228,1770125441380,-500.0,0.00016292,2]
[404419229,1770125441390,-165.0,0.000163,2]
[404419230,1770125441400,-200.0,0.0001634,2]
[404419231,1770125441409,-471.47764088,0.00016378,2]
[404419232,1770125441419,-1084.09055279,0.00016378,2]
[404419233,1770125441428,-457.87,0.00016438,2]
[404419234,1770125441437,-457.87,0.00016438,3]
[404419235,1770125441447,-457.87,0.00016438,4]
[404419236,1770125441457,-457.87,0.00016438,5]
[404419237,1770125441467,-457.87,0.00016438,6]
[404419238,1770125441476,-457.87,0.00016438,7]
[404419239,1770125441486,-457.87,0.00016438,8]
[404419240,1770125441495,-457.87,0.00016438,9]
[404419241,1770125441504,-457.87,0.00016438,10]
[404419242,1770125441513,-457.87,0.00016438,11]
[404419243,1770125441522,-457.87,0.00016438,12]
[404419244,1770125441533,-457.87,0.00016438,13]
[404419245,1770125441544,-457.87,0.00016438,14]
[404419246,1770125441554,-457.87,0.00016438,15]
[404419247,1770125441565,-457.87,0.00016438,16]
[404419248,1770125441574,-457.87,0.00016438,17]
[404419249,1770125441583,-457.87,0.00016438,18]
[404419250,1770125441592,-457.87,0.00016438,19]
[404419251,1770125441602,-457.87,0.00016438,20]
[404419252,1770125441611,-457.87,0.00016438,21]
[404419253,1770125441620,-457.87,0.00016438,21]
[404419254,1770125441629,-457.87,0.00016438,21]
[404419255,1770125441639,-457.87,0.00016438,21]
[404419256,1770125441647,-458.03207191,0.00016438,21]
[404419257,1770125441656,-500.0,0.00016438,2]
[404419258,1770125441666,-500.0,0.00016438,2]
[404419259,1770125441675,-500.0,0.00016438,2]
[404419260,1770125441684,-330.22332732,0.00016438,2]
[404419261,1770125441692,-796.48388824,0.00016438,2]
[404419262,1770125441702,-796.48388824,0.00016438,2]
[404419263,1770125441712,-796.48388824,0.00016438,2]
[404419264,1770125441721,-796.48388824,0.00016438,2]
[404419265,1770125441730,-796.48388824,0.00016438,2]
[404419266,1770125441738,-796.48388824,0.00016438,2]
[404419267,1770125441749,-796.48388824,0.00016438,2]
[404419268,1770125441759,-796.48388824,0.00016438,2]
[404419269,1770125441770,-796.48388824,0.00016438,2]
[404419270,1770125441780,-796.48388824,0.00016438,2]
[404419271,1770125441789,-796.48388824,0.00016438,2]
[404419272,1770125441799,-796.48388824,0.00016438,2]
[404419273,1770125441809,-796.48388824,0.00016438,2]
[404419274,1770125441821,-796.48388824,0.00016438,2]
[404419275,1770125441830,-796.48388824,0.00016438,2]
[404419276,1770125441840,-796.48388824,0.00016438,2]
[404419277,1770125441851,-796.48388824,0.00016438,2]
[404419278,1770125441862,-796.48388824,0.00016438,2]
[404419279,1770125441871,-796.48388824,0.00016438,2]
[404419280,1770125441882,-796.48388824,0.00016438,2]
[404419281,1770125441893,-796.48388824,0.00016438,2]
[404419282,1770125441902,-796.48388824,0.00016438,2]
[404419283,1770125441911,-796.48388824,0.00016438,2]
[404419284,1770125441920,-796.48388824,0.00016438,2]
[404419285,1770125441930,-796.48388824,0.00016438,2]
[404419286,1770125441940,-796.48388824,0.00016438,2]
[404419287,1770125441950,-796.48388824,0.00016438,2]
[404419288,1770125441960,-796.48388824,0.00016438,2]
[404419289,1770125441970,-796.48388824,0.00016438,2]
[404419290,1770125441980,-796.48388824,0.00016438,2]
[404419291,1770125441989,-796.48388824,0.00016438,2]
[404419292,1770125441998,-796.48388824,0.00016438,2]
[404419293,1770125442007,-796.48388824,0.00016438,2]
[404419294,1770125442016,-796.48388824,0.00016438,2]
[404419295,1770125442025,-796.48388824,0.00016438,2]
[404419296,1770125442035,-796.48388824,0.00016438,2]
[404419297,1770125442044,-796.48388824,0.00016438,2]
[404419298,1770125442053,-796.48388824,0.00016438,2]
[404419299,1770125442062,-796.48388824,0.00016438,2]
[404419300,1770125442071,-796.48388824,0.00016438,2]
[404419301,1770125442081,-796.48388824,0.00016438,2]
[404419302,1770125442090,-796.48388824,0.00016438,2]
[404419303,1770125442099,-796.48388824,0.00016438,2]
[404419304,1770125442108,-796.48388824,0.00016438,2]
[404419305,1770125442117,-796.48388824,0.00016438,2]
[404419306,1770125442126,-796.48388824,0.00016438,2]
[404419307,1770125442135,-796.48388824,0.00016438,2]
[404419308,1770125442145,-796.48388824,0.00016438,2]
[404419309,1770125442154,-796.48388824,0.00016438,2]
[404419310,1770125442163,-796.48388824,0.00016438,2]
[404419311,1770125442172,-796.48388824,0.00016438,2]
[404419312,1770125442182,-796.48388824,0.00016438,2]
[404419313,1770125442191,-796.48388824,0.00016438,2]
[404419314,1770125442201,-796.48388824,0.00016438,2]
[404419315,1770125442212,-796.48388824,0.00016438,2]
[404419316,1770125442222,-796.48388824,0.00016438,2]
[404419317,1770125442231,-796.48388824,0.00016438,2]
[404419318,1770125442241,-796.48388824,0.00016438,2]
[404419319,1770125442250,-4582.66608538,0.00016438,2]
[404419320,1770125442259,-4582.66608538,0.00016438,2]
[404419321,1770125442268,-4582.66608538,0.00016438,2]
[404419322,1770125442277,-4582.66608538,0.00016438,2]
[404419323,1770125442285,-4582.66608538,0.00016438,2]
[404419324,1770125442294,-4582.66608538,0.00016438,2]
[404419325,1770125442303,-4582.66608538,0.00016438,2]
[404419326,1770125442312,-4582.66608538,0.00016438,2]
[404419327,1770125442321,-4582.66608538,0.00016438,2]
[404419328,1770125442329,-4582.66608538,0.00016438,2]
[404419329,1770125442338,-4582.66608538,0.00016438,2]
[404419330,1770125442347,-4582.66608538,0.00016438,2]
[404419331,1770125442356,-4582.66608538,0.00016438,2]
[404419332,1770125442366,-4582.66608538,0.00016438,2]
[404419333,1770125442375,-4582.66608538,0.00016438,2]
[404419334,1770125442385,-4582.66608538,0.00016438,2]
[404419335,1770125442397,-4582.66608538,0.00016438,2]
[404419336,1770125442407,-4582.66608538,0.00016438,2]
[404419337,1770125442417,-4582.66608538,0.00016438,2]
[404419338,1770125442427,-4582.66608538,0.00016438,2]
[404419339,1770125442438,-4582.66608538,0.00016438,2]
[404419341,1770125442449,-4582.66608538,0.00016438,2]
[404419343,1770125442459,-4582.66608538,0.00016438,2]
[404419344,1770125442468,-4582.66608538,0.00016438,2]
[404419345,1770125442477,-4582.66608538,0.00016438,2]
[404419346,1770125442488,-4582.66608538,0.00016438,2]
[404419348,1770125442499,-4582.66608538,0.00016438,2]
[404419349,1770125442509,-4582.66608538,0.00016438,2]
[404419350,1770125442517,-4582.66608538,0.00016438,2]
[404419351,1770125442528,-4582.66608538,0.00016438,2]
[404419352,1770125442539,-4582.66608538,0.00016438,2]
[404419353,1770125442550,-200.0,0.00016438,2]
[404419354,1770125442560,-800.0,0.00016438,2]
[404419355,1770125442570,-151.0,0.00016438,2]
[404419356,1770125442580,-151.0,0.00016438,2]
[404419357,1770125442589,-151.0,0.00016438,2]
[404419358,1770125442600,-1725.90149928,0.00016444,2]
[404419359,1770125442609,-775.48,0.00016459,2]
[404419360,1770125442619,-165.0,0.000165,3]
[404419361,1770125442629,-165.0,0.000165,2]
[404419362,1770125442640,-2147.65440152,0.00016557,2]
[404419363,1770125442649,-360.83984207,0.000166,2]
[404419364,1770125442658,-30000.0,0.00016649,2]
[404419365,1770125442668,-2953.0,0.00016755,2]
[404419366,1770125442677,-1054.28149444,0.00016795,2]
[404419367,1770125442686,-1054.28149444,0.00016877,2]
[404419368,1770125442695,-1054.28149444,0.00016932,2]
[404419369,1770125442704,-150.01392508,0.00016998,2]
[404419370,1770125442713,-300.0,0.00017,2]
[404419371,1770125442723,-575900.12355035,0.00017,2]
[404419372,1770125442731,-160.0,0.00017,2]
[404419373,1770125442740,-160.0,0.00017,7]
[404419374,1770125442750,-1054.28149444,0.00017014,2]
[404419375,1770125442759,-500.0,0.00017024,2]
[404419376,1770125442768,-1054.28149444,0.00017068,2]
[404419377,1770125442777,-277.35679052,0.00017099,2]
[404419378,1770125442786,-1054.28149444,0.00017151,2]
[404419379,1770125442795,-1000.0,0.00017171,7]
[404419380,1770125442804,-150.0,0.00017178,7]
[404419381,1770125442815,-374.613885,0.00017178,7]
[404419382,1770125442828,-599.227771,0.00017178,7]
[404419383,1770125442837,-823.841657,0.00017178,7]
[404419384,1770125442847,-1048.455543,0.00017178,7]
[404419385,1770125442856,-1273.069429,0.00017178,7]
[404419386,1770125442866,-1497.683314,0.00017178,7]
[404419387,1770125442875,-1722.2972,0.00017178,7]
[404419388,1770125442884,-1946.911086,0.00017178,7]
[404419389,1770125442893,-2171.524972,0.00017178,7]
[404419390,1770125442903,-8671.74,0.00017192,2]
[404419391,1770125442913,-1054.28149444,0.00017205,2]
[404419392,1770125442924,-1000.0,0.0001726,2]
[404419393,1770125442933,-1054.28149444,0.00017288,2]
[404419394,1770125442943,-1054.28149444,0.00017342,2]
[404419395,1770125442953,-839.0,0.0001736,2]
[404419396,1770125442963,-1271.0,0.00017373,2]
[404419397,1770125442972,-150.0,0.00017373,2]
[404419398,1770125442983,-1205.0,0.00017373,2]
[404419399,1770125443191,-917.0,0.00017373,2]
[404419400,1770125443200,-3253.0,0.00017373,2]
[404419401,1770125443210,-1339.334,0.00017373,2]
[404419403,1770125443219,-1316.0,0.00017373,2]
[404419405,1770125443228,-1500.0,0.000174,2]
[404419406,1770125443238,-1054.28149444,0.00017425,2]
[404419407,1770125443247,-1054.28149444,0.00017479,2]
[404419408,1770125443256,-165.0,0.000175,2]
[404419409,1770125443267,-165.0,0.000175,3]
[404419410,1770125443276,-165.0,0.000175,4]
[404419411,1770125443286,-52248.952038,0.000175,3]
[404419412,1770125443294,-47397.30590922,0.000175,2]
[404419413,1770125443303,-400.0,0.000175,6]
[404419414,1770125443313,-1000.0,0.00017534,2]
[404419415,1770125443322,-1054.28149444,0.00017562,2]
[404419416,1770125443331,-5888.0,0.00017594,2]
[404419417,1770125443341,-1500.0,0.000176,2]
[404419418,1770125443350,-400.0,0.000176,6]
[404419419,1770125443360,-1208.52677438,0.0001764,2]
[404419420,1770125443369,-287.61899177,0.00017647,2]
[404419421,1770125443378,-5888.0,0.00017649,2]
[404419422,1770125443388,-5888.0,0.00017688,2]
[404419423,1770125443398,-5888.0,0.00017693,2]
[404419424,1770125443407,-400.0,0.000177,6]
[404419425,1770125443417,-5888.0,0.00017717,2]
[404419426,1770125443426,-20322.929095,0.00017772,7]
[404419427,1770125443436,-500.0,0.00017781,2]
[404419428,1770125443447,-156.0,0.000178,3]
[404419429,1770125443456,-1500.0,0.000178,2]
[404419430,1770125443467,-400.0,0.000178,6]
[404419431,1770125443476,-1000.0,0.00017808,2]
[404419432,1770125443485,-2000.0,0.0001782,2]
[404419433,1770125443495,-2000.0,0.0001782,2]
[404419434,1770125443505,-2000.0,0.0001782,2]
[404419435,1770125443515,-2000.0,0.0001782,2]
[404419436,1770125443524,-465.14001,0.00017833,2]
[404419437,1770125443535,-10036.3634695,0.00017833,2]
[404419438,1770125443545,-200.0,0.00017855,2]
[404419439,1770125443556,-200.0,0.00017856,2]
[404419440,1770125443565,-25000.0,0.00017882,3]
[404419441,1770125443574,-25000.0,0.00017891,3]
[404419442,1770125443583,-209.40437684,0.00017899,3]
[404419443,1770125443592,-217.15233878,0.00017899,3]
[404419444,1770125443602,-225.18697532,0.00017899,3]
[404419445,1770125443611,-186.26584138,0.00017899,3]
[404419446,1770125443620,-500.0,0.00017899,3]
[404419447,1770125443629,-578.20924308,0.00017899,3]
[404419448,1770125443639,-500.0,0.00017899,3]
[404419449,1770125443648,-599.60298507,0.00017899,3]
[404419450,1770125443659,-500.0,0.00017899,3]
[404419451,1770125443669,-500.0,0.00017899,3]
[404419452,1770125443678,-621.78829552,0.00017899,3]
[404419453,1770125443687,-500.0,0.00017899,3]
[404419454,1770125443696,-500.0,0.00017899,3]
[404419455,1770125443706,-644.79446246,0.00017899,3]
[404419456,1770125443717,-500.0,0.00017899,3]
[404419457,1770125443726,-404.1693775,0.00017899,3]
[404419458,1770125443735,-500.0,0.00017899,3]
[404419459,1770125443744,-500.0,0.00017899,3]
[404419460,1770125443753,-500.0,0.00017899,3]
[404419461,1770125443764,-500.0,0.00017899,3]
[404419462,1770125443774,-500.0,0.00017899,3]